[Event "Titled Tuesday Blitz February 21 Early 2023"]
[White "Turzo, Attila"]
[Black "Costachi, Mihnea"]
[WhiteFideId "704954"]
[BlackFideId "1217518"]
[WhiteElo "2279"]
[BlackElo "2476"]
[Result "0-1"]
[Round "08"]
[TimeControl "180+2"]
[Date "2023.02.21"]
[WhiteClock "0:00:02"]
[BlackClock "0:00:39"]

1. d4 {[%clk 0:03:00]}  c6 {[%clk 0:02:57]} 2. c4 {[%clk 0:03:01]}  d5 {[%clk 0:02:57]} 3. Nc3 {[%clk 0:03:01]}  Nf6 {[%clk 0:02:57]} 4. e3 {[%clk 0:03:02]}  Bf5 {[%clk 0:02:56]} 5. cxd5 {[%clk 0:02:54]}  cxd5 {[%clk 0:02:56]} 6. Qb3 {[%clk 0:02:55]}  b6 {[%clk 0:02:36]} 7. Nf3 {[%clk 0:02:51]}  Nbd7 {[%clk 0:02:33]} 8. Bb5 {[%clk 0:02:46]}  e6 {[%clk 0:02:31]} 9. Ne5 {[%clk 0:02:39]}  Bd6 {[%clk 0:02:27]} 10. e4 {[%clk 0:02:24]}  Bxe4 {[%clk 0:01:58]} 11. Bg5 {[%clk 0:02:05]}  Bxe5 {[%clk 0:01:45]} 12. dxe5 {[%clk 0:02:02]}  h6 {[%clk 0:01:46]} 13. Bxf6 {[%clk 0:01:33]}  gxf6 {[%clk 0:01:44]} 14. Nxe4 {[%clk 0:01:33]}  fxe5 {[%clk 0:01:37]} 15. Bxd7+ {[%clk 0:01:15]}  Kxd7 {[%clk 0:01:37]} 16. Qb5+ {[%clk 0:01:12]}  Ke7 {[%clk 0:01:20]} 17. Qb4+ {[%clk 0:01:12]}  Ke8 {[%clk 0:01:21]} 18. Nd6+ {[%clk 0:00:35]}  Kf8 {[%clk 0:01:21]} 19. Nf5+ {[%clk 0:00:33]}  Kg8 {[%clk 0:01:19]} 20. Ng3 {[%clk 0:00:18]}  Qf8 {[%clk 0:01:12]} 21. Qxf8+ {[%clk 0:00:15]}  Kxf8 {[%clk 0:01:13]} 22. Rc1 {[%clk 0:00:16]}  Ke7 {[%clk 0:01:08]} 23. Ne2 {[%clk 0:00:14]}  Kd6 {[%clk 0:01:06]} 24. Kd2 {[%clk 0:00:15]}  e4 {[%clk 0:01:01]} 25. f3 {[%clk 0:00:14]}  f5 {[%clk 0:01:00]} 26. fxe4 {[%clk 0:00:13]}  fxe4 {[%clk 0:01:01]} 27. Rhf1 {[%clk 0:00:13]}  Rhf8 {[%clk 0:00:59]} 28. g3 {[%clk 0:00:12]}  Ke5 {[%clk 0:00:58]} 29. Ke3 {[%clk 0:00:12]}  Rad8 {[%clk 0:00:54]} 30. Nd4 {[%clk 0:00:12]}  Kd6 {[%clk 0:00:52]} 31. Nb5+ {[%clk 0:00:10]}  Ke5 {[%clk 0:00:52]} 32. Nd4 {[%clk 0:00:10]}  Rxf1 {[%clk 0:00:50]} 33. Rxf1 {[%clk 0:00:06]}  Rc8 {[%clk 0:00:50]} 34. Rf2 {[%clk 0:00:03]}  Rc1 {[%clk 0:00:47]} 35. Rc2 {[%clk 0:00:03]}  Re1+ {[%clk 0:00:47]} 36. Kf2 {[%clk 0:00:03]}  Rh1 {[%clk 0:00:42]} 37. Kg2 {[%clk 0:00:03]}  Ra1 {[%clk 0:00:43]} 38. Nc6+ {[%clk 0:00:03]}  Kd6 {[%clk 0:00:42]} 39. b4 {[%clk 0:00:02]}  a6 {[%clk 0:00:39]} 0-1


[Site "https://www.chess.com"]

[Event "Titled Tuesday Blitz February 21 Early 2023"]
[White "Alex_Sahakyan2006"]
[Black "Kokoszczynski, Jan"]
[BlackFideId "1174460"]
[WhiteElo "2664"]
[BlackElo "2247"]
[Result "0-1"]
[Round "08"]
[TimeControl "180+2"]
[Date "2023.02.21"]
[WhiteClock "0:00:01"]
[BlackClock "0:00:10"]

1. d4 {[%clk 0:03:00]}  d5 {[%clk 0:02:58]} 2. c4 {[%clk 0:02:59]}  c6 {[%clk 0:02:58]} 3. Bf4 {[%clk 0:02:54]}  Nf6 {[%clk 0:02:57]} 4. e3 {[%clk 0:02:53]}  e6 {[%clk 0:02:53]} 5. Nc3 {[%clk 0:02:49]}  Nbd7 {[%clk 0:02:53]} 6. Nf3 {[%clk 0:02:46]}  Be7 {[%clk 0:02:42]} 7. h3 {[%clk 0:02:45]}  O-O {[%clk 0:02:42]} 8. cxd5 {[%clk 0:02:38]}  exd5 {[%clk 0:02:19]} 9. Bd3 {[%clk 0:02:37]}  Re8 {[%clk 0:02:19]} 10. O-O {[%clk 0:02:26]}  a5 {[%clk 0:02:16]} 11. Qc2 {[%clk 0:02:09]}  Nf8 {[%clk 0:02:02]} 12. Ne5 {[%clk 0:02:06]}  h6 {[%clk 0:01:43]} 13. Bh2 {[%clk 0:02:01]}  Bd6 {[%clk 0:01:35]} 14. f4 {[%clk 0:01:54]}  Ne6 {[%clk 0:01:22]} 15. g4 {[%clk 0:01:50]}  c5 {[%clk 0:01:19]} 16. f5 {[%clk 0:01:19]}  Ng5 {[%clk 0:01:17]} 17. Qg2 {[%clk 0:01:05]}  cxd4 {[%clk 0:01:12]} 18. exd4 {[%clk 0:01:04]}  Qb6 {[%clk 0:01:12]} 19. Kh1 {[%clk 0:00:20]}  Nge4 {[%clk 0:00:28]} 20. Nxd5 {[%clk 0:00:16]}  Nxd5 {[%clk 0:00:27]} 21. Qxe4 {[%clk 0:00:15]}  Nf6 {[%clk 0:00:26]} 22. Qf4 {[%clk 0:00:12]}  Qxb2 {[%clk 0:00:25]} 23. Rab1 {[%clk 0:00:11]}  Qxa2 {[%clk 0:00:23]} 24. Bc4 {[%clk 0:00:11]}  Qxc4 {[%clk 0:00:18]} 25. Nxc4 {[%clk 0:00:10]}  Bxf4 {[%clk 0:00:18]} 26. Bxf4 {[%clk 0:00:11]}  Bd7 {[%clk 0:00:11]} 27. Ne5 {[%clk 0:00:11]}  Bc6+ {[%clk 0:00:10]} 28. Nxc6 {[%clk 0:00:11]}  bxc6 {[%clk 0:00:10]} 29. Rfc1 {[%clk 0:00:11]}  Re2 {[%clk 0:00:10]} 30. Rxc6 {[%clk 0:00:09]}  a4 {[%clk 0:00:10]} 31. Rcb6 {[%clk 0:00:03]}  a3 {[%clk 0:00:10]} 32. Rb8+ {[%clk 0:00:04]}  Rxb8 {[%clk 0:00:09]} 33. Rxb8+ {[%clk 0:00:05]}  Kh7 {[%clk 0:00:10]} 34. Ra8 {[%clk 0:00:04]}  a2 {[%clk 0:00:11]} 35. Bc1 {[%clk 0:00:03]}  Rc2 {[%clk 0:00:10]} 36. Bb2 {[%clk 0:00:01]}  Rxb2 {[%clk 0:00:10]} 0-1


[Site "https://www.chess.com"]

[Event "Titled Tuesday Blitz February 21 Early 2023"]
[White "Reprintsev, Alexander"]
[Black "Sadubayev, Airat"]
[WhiteFideId "14100541"]
[BlackFideId "13713264"]
[WhiteElo "2253"]
[BlackElo "2320"]
[Result "0-1"]
[Round "08"]
[TimeControl "180+2"]
[Date "2023.02.21"]
[WhiteClock "0:01:19"]
[BlackClock "0:01:28"]

1. e4 {[%clk 0:02:59]}  c5 {[%clk 0:02:58]} 2. b3 {[%clk 0:02:59]}  Nc6 {[%clk 0:02:54]} 3. Bb2 {[%clk 0:02:58]}  Nf6 {[%clk 0:02:49]} 4. e5 {[%clk 0:02:56]}  Nd5 {[%clk 0:02:49]} 5. Nf3 {[%clk 0:02:55]}  d6 {[%clk 0:02:47]} 6. exd6 {[%clk 0:02:44]}  Qxd6 {[%clk 0:02:46]} 7. Na3 {[%clk 0:02:43]}  Bg4 {[%clk 0:02:40]} 8. Nc4 {[%clk 0:02:36]}  Qc7 {[%clk 0:02:39]} 9. h3 {[%clk 0:02:34]}  Bh5 {[%clk 0:02:29]} 10. g4 {[%clk 0:02:21]}  Bg6 {[%clk 0:02:29]} 11. Qe2 {[%clk 0:02:21]}  e6 {[%clk 0:02:16]} 12. Nfe5 {[%clk 0:02:18]}  O-O-O {[%clk 0:02:10]} 13. O-O-O {[%clk 0:02:16]}  Nd4 {[%clk 0:02:06]} 14. Qe1 {[%clk 0:02:10]}  Nxc2 {[%clk 0:02:01]} 15. Nxg6 {[%clk 0:01:55]}  Nxe1 {[%clk 0:01:57]} 16. Nxh8 {[%clk 0:01:55]}  Nf3 {[%clk 0:01:52]} 17. Bg2 {[%clk 0:01:54]}  Nd4 {[%clk 0:01:46]} 18. Ne3 {[%clk 0:01:44]}  Nf4 {[%clk 0:01:44]} 19. Be4 {[%clk 0:01:43]}  g6 {[%clk 0:01:41]} 20. Kb1 {[%clk 0:01:37]}  Bg7 {[%clk 0:01:40]} 21. Nxf7 {[%clk 0:01:37]}  Qxf7 {[%clk 0:01:39]} 22. Rc1 {[%clk 0:01:37]}  b6 {[%clk 0:01:36]} 23. b4 {[%clk 0:01:37]}  Nde2 {[%clk 0:01:35]} 24. Rc2 {[%clk 0:01:35]}  Bxb2 {[%clk 0:01:31]} 25. Rxb2 {[%clk 0:01:32]}  Rd4 {[%clk 0:01:30]} 26. d3 {[%clk 0:01:20]}  Nc3+ {[%clk 0:01:28]} 27. Ka1 {[%clk 0:01:19]}  Nxe4 {[%clk 0:01:28]} 28. dxe4 {[%clk 0:01:19]}  Rxb4 {[%clk 0:01:28]} 0-1


[Site "https://www.chess.com"]

[Event "Titled Tuesday Blitz February 21 Early 2023"]
[White "Maksimenko, Viktor"]
[Black "Silva, Pedro Gil Ferreira Da"]
[WhiteFideId "13710478"]
[BlackFideId "1946102"]
[WhiteElo "2196"]
[BlackElo "2227"]
[Result "1-0"]
[Round "08"]
[TimeControl "180+2"]
[Date "2023.02.21"]
[WhiteClock "0:00:14"]
[BlackClock "0:00:11"]

1. d4 {[%clk 0:03:00]}  Nf6 {[%clk 0:02:59]} 2. c4 {[%clk 0:02:59]}  e6 {[%clk 0:02:59]} 3. Nf3 {[%clk 0:02:59]}  Bb4+ {[%clk 0:02:59]} 4. Bd2 {[%clk 0:02:45]}  c5 {[%clk 0:02:59]} 5. Bxb4 {[%clk 0:02:42]}  cxb4 {[%clk 0:03:00]} 6. e3 {[%clk 0:02:43]}  O-O {[%clk 0:02:59]} 7. Bd3 {[%clk 0:02:43]}  d6 {[%clk 0:02:59]} 8. O-O {[%clk 0:02:44]}  Nc6 {[%clk 0:03:00]} 9. a3 {[%clk 0:02:44]}  e5 {[%clk 0:02:59]} 10. Qc2 {[%clk 0:02:37]}  Re8 {[%clk 0:02:57]} 11. Nbd2 {[%clk 0:02:32]}  Qe7 {[%clk 0:02:50]} 12. d5 {[%clk 0:02:26]}  Nb8 {[%clk 0:02:49]} 13. Ng5 {[%clk 0:02:22]}  h6 {[%clk 0:02:47]} 14. Nge4 {[%clk 0:02:14]}  bxa3 {[%clk 0:02:46]} 15. Nxf6+ {[%clk 0:02:09]}  Qxf6 {[%clk 0:02:47]} 16. b4 {[%clk 0:02:03]}  Na6 {[%clk 0:02:36]} 17. Ne4 {[%clk 0:01:52]}  Qe7 {[%clk 0:02:35]} 18. Rfb1 {[%clk 0:01:09]}  Bf5 {[%clk 0:02:20]} 19. Rxa3 {[%clk 0:01:07]}  Bxe4 {[%clk 0:02:20]} 20. Bxe4 {[%clk 0:01:08]}  Rac8 {[%clk 0:02:19]} 21. Qa2 {[%clk 0:01:05]}  Qc7 {[%clk 0:02:15]} 22. Bd3 {[%clk 0:01:02]}  e4 {[%clk 0:02:07]} 23. Bf1 {[%clk 0:01:02]}  Qb6 {[%clk 0:02:06]} 24. Ra4 {[%clk 0:01:00]}  Re7 {[%clk 0:02:01]} 25. h3 {[%clk 0:00:56]}  Qc7 {[%clk 0:01:49]} 26. Qa3 {[%clk 0:00:54]}  Re5 {[%clk 0:01:46]} 27. Ra5 {[%clk 0:00:43]}  Qe7 {[%clk 0:01:34]} 28. Qc3 {[%clk 0:00:39]}  Nc7 {[%clk 0:01:31]} 29. Qd4 {[%clk 0:00:35]}  a6 {[%clk 0:01:31]} 30. Ra2 {[%clk 0:00:34]}  b5 {[%clk 0:01:29]} 31. Rc1 {[%clk 0:00:32]}  Nxd5 {[%clk 0:01:22]} 32. c5 {[%clk 0:00:27]}  dxc5 {[%clk 0:01:21]} 33. bxc5 {[%clk 0:00:28]}  Nf6 {[%clk 0:01:17]} 34. c6 {[%clk 0:00:26]}  Rd5 {[%clk 0:01:01]} 35. Qb6 {[%clk 0:00:25]}  Rd6 {[%clk 0:00:59]} 36. Rxa6 {[%clk 0:00:25]}  Qe5 {[%clk 0:00:49]} 37. Qxb5 {[%clk 0:00:23]}  Qe6 {[%clk 0:00:47]} 38. Qc4 {[%clk 0:00:22]}  Nd5 {[%clk 0:00:46]} 39. Qb3 {[%clk 0:00:18]}  Qf6 {[%clk 0:00:41]} 40. Ra7 {[%clk 0:00:18]}  Rdxc6 {[%clk 0:00:37]} 41. Rd1 {[%clk 0:00:17]}  Ne7 {[%clk 0:00:34]} 42. Rdd7 {[%clk 0:00:16]}  Re6 {[%clk 0:00:34]} 43. Qb7 {[%clk 0:00:15]}  Re8 {[%clk 0:00:29]} 44. Bb5 {[%clk 0:00:15]}  g6 {[%clk 0:00:25]} 45. Rd4 {[%clk 0:00:15]}  Rf8 {[%clk 0:00:24]} 46. Rxe4 {[%clk 0:00:15]}  Rxe4 {[%clk 0:00:23]} 47. Qxe4 {[%clk 0:00:16]}  Nf5 {[%clk 0:00:23]} 48. Bc4 {[%clk 0:00:16]}  Nd6 {[%clk 0:00:23]} 49. Qd5 {[%clk 0:00:17]}  Nxc4 {[%clk 0:00:23]} 50. Qxc4 {[%clk 0:00:18]}  Qd6 {[%clk 0:00:23]} 51. Qe2 {[%clk 0:00:17]}  Kg7 {[%clk 0:00:22]} 52. g3 {[%clk 0:00:16]}  h5 {[%clk 0:00:22]} 53. h4 {[%clk 0:00:17]}  Rb8 {[%clk 0:00:21]} 54. Qf3 {[%clk 0:00:17]}  Qf6 {[%clk 0:00:20]} 55. Qd5 {[%clk 0:00:14]}  Rb1+ {[%clk 0:00:20]} 56. Kg2 {[%clk 0:00:14]}  Rb2 {[%clk 0:00:20]} 57. Qf3 {[%clk 0:00:14]}  Qxf3+ {[%clk 0:00:19]} 58. Kxf3 {[%clk 0:00:15]}  Rb6 {[%clk 0:00:20]} 59. Ra4 {[%clk 0:00:15]}  Rf6+ {[%clk 0:00:20]} 60. Rf4 {[%clk 0:00:16]}  Rb6 {[%clk 0:00:21]} 61. Ke4 {[%clk 0:00:16]}  Rb4+ {[%clk 0:00:21]} 62. Ke5 {[%clk 0:00:16]}  Rb2 {[%clk 0:00:21]} 63. Kd6 {[%clk 0:00:16]}  Rb6+ {[%clk 0:00:22]} 64. Kd5 {[%clk 0:00:16]}  Rb5+ {[%clk 0:00:22]} 65. Kc4 {[%clk 0:00:16]}  Rb2 {[%clk 0:00:22]} 66. e4 {[%clk 0:00:17]}  Rb7 {[%clk 0:00:23]} 67. Kd5 {[%clk 0:00:17]}  Rb5+ {[%clk 0:00:23]} 68. Kc6 {[%clk 0:00:18]}  Rb2 {[%clk 0:00:23]} 69. e5 {[%clk 0:00:18]}  Rc2+ {[%clk 0:00:23]} 70. Kd6 {[%clk 0:00:18]}  Ra2 {[%clk 0:00:24]} 71. Kd5 {[%clk 0:00:18]}  Ra5+ {[%clk 0:00:24]} 72. Kd4 {[%clk 0:00:19]}  Ra4+ {[%clk 0:00:25]} 73. Ke3 {[%clk 0:00:19]}  Ra3+ {[%clk 0:00:25]} 74. Ke2 {[%clk 0:00:19]}  Rb3 {[%clk 0:00:25]} 75. Rd4 {[%clk 0:00:18]}  Rb5 {[%clk 0:00:25]} 76. Re4 {[%clk 0:00:18]}  Rb6 {[%clk 0:00:24]} 77. Ke3 {[%clk 0:00:18]}  Rb3+ {[%clk 0:00:24]} 78. Kf4 {[%clk 0:00:19]}  Rb2 {[%clk 0:00:24]} 79. f3 {[%clk 0:00:18]}  Rb6 {[%clk 0:00:24]} 80. Rc4 {[%clk 0:00:19]}  Ra6 {[%clk 0:00:23]} 81. g4 {[%clk 0:00:18]}  hxg4 {[%clk 0:00:24]} 82. Kxg4 {[%clk 0:00:18]}  Rb6 {[%clk 0:00:24]} 83. h5 {[%clk 0:00:17]}  gxh5+ {[%clk 0:00:25]} 84. Kxh5 {[%clk 0:00:18]}  Rb3 {[%clk 0:00:25]} 85. f4 {[%clk 0:00:18]}  Rb6 {[%clk 0:00:24]} 86. Kg4 {[%clk 0:00:18]}  Rg6+ {[%clk 0:00:24]} 87. Kf5 {[%clk 0:00:19]}  Ra6 {[%clk 0:00:21]} 88. Rc2 {[%clk 0:00:19]}  Rb6 {[%clk 0:00:21]} 89. Rc7 {[%clk 0:00:19]}  Ra6 {[%clk 0:00:21]} 90. Re7 {[%clk 0:00:20]}  Rb6 {[%clk 0:00:21]} 91. e6 {[%clk 0:00:18]}  Rb5+ {[%clk 0:00:22]} 92. Kg4 {[%clk 0:00:17]}  Kf6 {[%clk 0:00:22]} 93. Rxf7+ {[%clk 0:00:16]}  Kxe6 {[%clk 0:00:22]} 94. Rf8 {[%clk 0:00:17]}  Ke7 {[%clk 0:00:22]} 95. Rf5 {[%clk 0:00:16]}  Rb6 {[%clk 0:00:22]} 96. Kg5 {[%clk 0:00:16]}  Ra6 {[%clk 0:00:22]} 97. Kh5 {[%clk 0:00:11]}  Rb6 {[%clk 0:00:22]} 98. Kg4 {[%clk 0:00:12]}  Ra6 {[%clk 0:00:22]} 99. Rh5 {[%clk 0:00:12]}  Kf7 {[%clk 0:00:22]} 100. Rh7+ {[%clk 0:00:12]}  Kg8 {[%clk 0:00:22]} 101. Rb7 {[%clk 0:00:12]}  Kf8 {[%clk 0:00:23]} 102. Kg5 {[%clk 0:00:12]}  Kg8 {[%clk 0:00:23]} 103. Rd7 {[%clk 0:00:12]}  Kf8 {[%clk 0:00:24]} 104. Rd5 {[%clk 0:00:12]}  Kg8 {[%clk 0:00:24]} 105. Rf5 {[%clk 0:00:13]}  Kg7 {[%clk 0:00:23]} 106. Re5 {[%clk 0:00:13]}  Kf7 {[%clk 0:00:24]} 107. Rb5 {[%clk 0:00:13]}  Kf8 {[%clk 0:00:24]} 108. Rb7 {[%clk 0:00:13]}  Kg8 {[%clk 0:00:24]} 109. Rc7 {[%clk 0:00:13]}  Kf8 {[%clk 0:00:24]} 110. Rc5 {[%clk 0:00:14]}  Kg7 {[%clk 0:00:24]} 111. Rd5 {[%clk 0:00:13]}  Kf7 {[%clk 0:00:23]} 112. Re5 {[%clk 0:00:13]}  Kf8 {[%clk 0:00:23]} 113. f5 {[%clk 0:00:11]}  Kg8 {[%clk 0:00:24]} 114. Re6 {[%clk 0:00:11]}  Rxe6 {[%clk 0:00:11]} 115. fxe6 {[%clk 0:00:12]}  Kg7 {[%clk 0:00:11]} 116. Kf5 {[%clk 0:00:11]}  Kg8 {[%clk 0:00:12]} 117. Kg6 {[%clk 0:00:12]}  Kf8 {[%clk 0:00:09]} 118. Kf6 {[%clk 0:00:12]}  Ke8 {[%clk 0:00:10]} 119. e7 {[%clk 0:00:13]}  Kd7 {[%clk 0:00:11]} 120. Kf7 {[%clk 0:00:14]} 1-0


[Site "https://www.chess.com"]

[Event "Titled Tuesday Blitz February 21 Early 2023"]
[White "Ismagilov, Damir"]
[Black "Andrews, Todd"]
[WhiteFideId "34199982"]
[BlackFideId "2012456"]
[WhiteElo "2156"]
[BlackElo "2220"]
[Result "0-1"]
[Round "08"]
[TimeControl "180+2"]
[Date "2023.02.21"]
[WhiteClock "0:00:14"]
[BlackClock "0:00:10"]

1. e4 {[%clk 0:03:00]}  e6 {[%clk 0:02:44]} 2. d4 {[%clk 0:03:00]}  d5 {[%clk 0:02:44]} 3. Nd2 {[%clk 0:02:59]}  Nc6 {[%clk 0:02:43]} 4. c3 {[%clk 0:02:58]}  e5 {[%clk 0:02:42]} 5. Bb5 {[%clk 0:02:36]}  exd4 {[%clk 0:02:31]} 6. cxd4 {[%clk 0:02:34]}  Bd7 {[%clk 0:02:18]} 7. Bxc6 {[%clk 0:02:33]}  Bxc6 {[%clk 0:02:17]} 8. e5 {[%clk 0:02:33]}  Qd7 {[%clk 0:02:00]} 9. Ngf3 {[%clk 0:02:32]}  O-O-O {[%clk 0:02:00]} 10. Nb3 {[%clk 0:02:28]}  h6 {[%clk 0:01:35]} 11. O-O {[%clk 0:02:24]}  Kb8 {[%clk 0:01:32]} 12. Bf4 {[%clk 0:02:21]}  g5 {[%clk 0:01:31]} 13. Bg3 {[%clk 0:02:21]}  Re8 {[%clk 0:01:04]} 14. Rc1 {[%clk 0:02:20]}  Re6 {[%clk 0:01:01]} 15. Ne1 {[%clk 0:02:05]}  Bb5 {[%clk 0:00:59]} 16. Nd3 {[%clk 0:02:03]}  h5 {[%clk 0:00:59]} 17. Ndc5 {[%clk 0:02:02]}  Bxc5 {[%clk 0:00:58]} 18. Nxc5 {[%clk 0:02:03]}  Qe8 {[%clk 0:00:52]} 19. Nxe6 {[%clk 0:02:00]}  fxe6 {[%clk 0:00:51]} 20. Qc2 {[%clk 0:01:50]}  c6 {[%clk 0:00:40]} 21. f4 {[%clk 0:01:43]}  Bxf1 {[%clk 0:00:40]} 22. Rxf1 {[%clk 0:01:43]}  h4 {[%clk 0:00:38]} 23. Be1 {[%clk 0:01:42]}  h3 {[%clk 0:00:31]} 24. Bb4 {[%clk 0:01:23]}  hxg2 {[%clk 0:00:28]} 25. Qxg2 {[%clk 0:01:24]}  gxf4 {[%clk 0:00:27]} 26. Rxf4 {[%clk 0:01:17]}  Nh6 {[%clk 0:00:27]} 27. Kh1 {[%clk 0:01:11]}  Nf5 {[%clk 0:00:24]} 28. a3 {[%clk 0:00:54]}  Qh5 {[%clk 0:00:23]} 29. Rg4 {[%clk 0:00:53]}  Qh7 {[%clk 0:00:16]} 30. Bc5 {[%clk 0:00:34]}  Ne3 {[%clk 0:00:14]} 31. Bd6+ {[%clk 0:00:34]}  Ka8 {[%clk 0:00:13]} 32. Rg7 {[%clk 0:00:30]}  Nxg2 {[%clk 0:00:13]} 33. Rxh7 {[%clk 0:00:30]}  Rxh7 {[%clk 0:00:14]} 34. Kxg2 {[%clk 0:00:31]}  b6 {[%clk 0:00:14]} 35. Kg3 {[%clk 0:00:30]}  Kb7 {[%clk 0:00:15]} 36. h4 {[%clk 0:00:30]}  Kc8 {[%clk 0:00:16]} 37. Kg4 {[%clk 0:00:31]}  Kd7 {[%clk 0:00:16]} 38. Kg5 {[%clk 0:00:27]}  Ke8 {[%clk 0:00:16]} 39. h5 {[%clk 0:00:25]}  Kf7 {[%clk 0:00:17]} 40. h6 {[%clk 0:00:25]}  Rh8 {[%clk 0:00:16]} 41. Kh5 {[%clk 0:00:24]}  a6 {[%clk 0:00:14]} 42. Bb4 {[%clk 0:00:21]}  a5 {[%clk 0:00:13]} 43. Bd2 {[%clk 0:00:21]}  a4 {[%clk 0:00:12]} 44. Be3 {[%clk 0:00:21]}  Rc8 {[%clk 0:00:11]} 45. h7 {[%clk 0:00:20]}  Kg7 {[%clk 0:00:11]} 46. Kg5 {[%clk 0:00:21]}  Rf8 {[%clk 0:00:08]} 47. Bf4 {[%clk 0:00:17]}  Rf5+ {[%clk 0:00:08]} 48. Kg4 {[%clk 0:00:18]}  Kxh7 {[%clk 0:00:09]} 49. Bg5 {[%clk 0:00:18]}  Kg6 {[%clk 0:00:09]} 50. Bd8 {[%clk 0:00:19]}  b5 {[%clk 0:00:08]} 51. Ba5 {[%clk 0:00:19]}  c5 {[%clk 0:00:08]} 52. dxc5 {[%clk 0:00:19]}  Rf8 {[%clk 0:00:08]} 53. c6 {[%clk 0:00:18]}  Rc8 {[%clk 0:00:08]} 54. c7 {[%clk 0:00:19]}  Kf7 {[%clk 0:00:09]} 55. Kg5 {[%clk 0:00:19]}  Ke7 {[%clk 0:00:09]} 56. Kg6 {[%clk 0:00:20]}  Rg8+ {[%clk 0:00:09]} 57. Kh7 {[%clk 0:00:20]}  Rc8 {[%clk 0:00:08]} 58. Kg7 {[%clk 0:00:21]}  Ra8 {[%clk 0:00:08]} 59. Bb4+ {[%clk 0:00:21]}  Kd7 {[%clk 0:00:08]} 60. Kf7 {[%clk 0:00:21]}  Rc8 {[%clk 0:00:08]} 61. Bd6 {[%clk 0:00:21]}  d4 {[%clk 0:00:08]} 62. Bb4 {[%clk 0:00:14]}  d3 {[%clk 0:00:08]} 63. Kf6 {[%clk 0:00:14]}  Rxc7 {[%clk 0:00:09]} 64. Bd2 {[%clk 0:00:14]}  Rc2 {[%clk 0:00:10]} 65. Bb4 {[%clk 0:00:14]}  d2 {[%clk 0:00:10]} 0-1


[Site "https://www.chess.com"]

[Event "Titled Tuesday Blitz February 21 Early 2023"]
[White "Jovic, Stanoje"]
[Black "Maltsevskaya, Aleksandra"]
[WhiteFideId "905020"]
[BlackFideId "24174041"]
[WhiteElo "2075"]
[BlackElo "2390"]
[Result "0-1"]
[Round "08"]
[TimeControl "180+2"]
[Date "2023.02.21"]
[WhiteClock "0:00:10"]
[BlackClock "0:00:17"]

1. c4 {[%clk 0:03:00]}  Nf6 {[%clk 0:01:57]} 2. g3 {[%clk 0:03:00]}  g6 {[%clk 0:01:57]} 3. Bg2 {[%clk 0:03:00]}  Bg7 {[%clk 0:01:58]} 4. Nc3 {[%clk 0:03:00]}  O-O {[%clk 0:01:59]} 5. Nf3 {[%clk 0:03:00]}  d6 {[%clk 0:01:59]} 6. O-O {[%clk 0:03:00]}  Nbd7 {[%clk 0:02:00]} 7. Rb1 {[%clk 0:02:56]}  e5 {[%clk 0:02:01]} 8. b4 {[%clk 0:02:54]}  a5 {[%clk 0:02:02]} 9. b5 {[%clk 0:02:50]}  e4 {[%clk 0:02:01]} 10. Ng5 {[%clk 0:02:46]}  Nb6 {[%clk 0:01:59]} 11. c5 {[%clk 0:02:37]}  dxc5 {[%clk 0:01:59]} 12. Ngxe4 {[%clk 0:02:36]}  Nxe4 {[%clk 0:01:55]} 13. Nxe4 {[%clk 0:02:36]}  Be6 {[%clk 0:01:48]} 14. Nxc5 {[%clk 0:02:24]}  Bxa2 {[%clk 0:01:46]} 15. Nxb7 {[%clk 0:02:23]}  Qe7 {[%clk 0:01:45]} 16. Rb2 {[%clk 0:02:19]}  Bd5 {[%clk 0:01:10]} 17. Bxd5 {[%clk 0:02:10]}  Nxd5 {[%clk 0:01:11]} 18. d4 {[%clk 0:02:08]}  a4 {[%clk 0:01:00]} 19. Nc5 {[%clk 0:02:00]}  a3 {[%clk 0:01:01]} 20. Rd2 {[%clk 0:01:51]}  Nc3 {[%clk 0:00:57]} 21. Qc2 {[%clk 0:01:46]}  Bxd4 {[%clk 0:00:56]} 22. Nb3 {[%clk 0:01:35]}  Bf6 {[%clk 0:00:52]} 23. e3 {[%clk 0:01:25]}  Qe4 {[%clk 0:00:40]} 24. Qxe4 {[%clk 0:01:19]}  Nxe4 {[%clk 0:00:41]} 25. Ra2 {[%clk 0:01:18]}  Be7 {[%clk 0:00:35]} 26. Nd4 {[%clk 0:01:11]}  Ra4 {[%clk 0:00:31]} 27. f3 {[%clk 0:01:06]}  Nc3 {[%clk 0:00:27]} 28. Rc2 {[%clk 0:01:00]}  Nd5 {[%clk 0:00:27]} 29. Kf2 {[%clk 0:00:54]}  Rfa8 {[%clk 0:00:26]} 30. Bd2 {[%clk 0:00:50]}  Bf6 {[%clk 0:00:23]} 31. Ra1 {[%clk 0:00:32]}  Rxd4 {[%clk 0:00:21]} 32. Raa2 {[%clk 0:00:25]}  Rd3 {[%clk 0:00:16]} 33. e4 {[%clk 0:00:23]}  Nc3 {[%clk 0:00:16]} 34. Bxc3 {[%clk 0:00:17]}  Rxc3 {[%clk 0:00:17]} 35. Re2 {[%clk 0:00:14]}  Rb3 {[%clk 0:00:17]} 36. e5 {[%clk 0:00:14]}  Be7 {[%clk 0:00:17]} 37. f4 {[%clk 0:00:14]}  Rxb5 {[%clk 0:00:17]} 38. h4 {[%clk 0:00:14]}  Bc5+ {[%clk 0:00:17]} 39. Kf3 {[%clk 0:00:14]}  Bd4 {[%clk 0:00:17]} 40. h5 {[%clk 0:00:14]}  Rb2 {[%clk 0:00:18]} 41. hxg6 {[%clk 0:00:12]}  hxg6 {[%clk 0:00:19]} 42. e6 {[%clk 0:00:12]}  Rxe2 {[%clk 0:00:18]} 43. exf7+ {[%clk 0:00:11]}  Kxf7 {[%clk 0:00:19]} 44. Kxe2 {[%clk 0:00:10]}  Bb2 {[%clk 0:00:19]} 45. Kd3 {[%clk 0:00:11]}  Ra4 {[%clk 0:00:18]} 46. Ke3 {[%clk 0:00:10]}  Rc4 {[%clk 0:00:17]} 0-1


[Site "https://www.chess.com"]